Cogmind - Beta 9.6 @@@ ROGUE MODE // 2020.05.01 @ 16:42:19 Player: Relth Result: Destroyed by G-34 Mercenary with Small Laser Performance ------------- Evolutions (1) 500 Regions Visited (3) 600 Robots Destroyed (65) 325 Value Destroyed (1922) 1922 Prototype IDs (0) 0 Alien Tech Used (0) 0 Bonus (0) 0 TOTAL SCORE: 3347 Bonus ------- None Cogmind --------- Core Integrity 0/400 Matter 251/300 Energy 265/265 System Corruption 0% Temperature Cool (6) Movement Core (750) Ox14 Location -9/Storage Parts ------- > --- POWER (1) -------- Improved Ion Engine > --- PROPULSION (3) --- (None) > --- UTILITY (3) ------ Large Storage Unit Large Storage Unit Core Shielding > --- WEAPON (2) ------- Shotgun > --- INVENTORY (16) --- Ion Engine Improved Ion Engine Heat Sink Heat Sink Heat Sink Sensor Array Advanced Signal Interpreter Heavy EM Pulse Gun Beam Rifle Heavy Assault Rifle Shotgun Improved Grenade Launcher Improved Grenade Launcher Peak State ------------ > --- POWER ------------ Ion Engine > --- PROPULSION ------- Aluminum Leg Aluminum Leg Aluminum Leg > --- UTILITY ---------- Large Storage Unit Medium Armor Plating Medium Armor Plating > --- WEAPON ----------- Heavy EM Pulse Gun Improved Grenade Launcher > --- INVENTORY -------- Ion Engine Aluminum Leg Aluminum Leg Cooling System Large Storage Unit Medium Armor Plating Heavy EM Pulse Gun Heavy EM Pulse Gun Particle Gun Particle Gun [Rating: 15] Favorites ----------- Power Ion Engine Engine Ion Engine Propulsion Aluminum Leg Leg Aluminum Leg Hover Unit Hover Unit Utility Large Storage Unit Device Cooling System Storage Large Storage Unit Protection Medium Armor Plating Weapon Heavy Assault Rifle Energy Gun Heavy EM Pulse Gun Ballistic Gun Heavy Assault Rifle Launcher Improved Grenade Launcher Build | -11 -10 -9 -9 ------- Run | Scr Mat Mat Sto Slots Evolved 2 | . . 2 . Power . | . . . . Propulsion 1 | . . 1 . Utility 1 | . . 1 . Weapon . | . . . . Parts Attached 46 | 6 6 22 12 Power 4 | 1 . 2 1 Engine 4 | 1 . 2 1 Core . | . . . . Reactor . | . . . . Propulsion 15 | 2 . 7 6 Treads . | . . . . Leg 13 | 2 . 7 4 Wheel . | . . . . Hover 2 | . . . 2 Flight . | . . . . Utility 11 | 1 4 5 1 Device 1 | . . 1 . Storage 4 | 1 2 1 . Processor . | . . . . Hackware . | . . . . Protection 6 | . 2 3 1 Artifact . | . . . . Weapon 16 | 2 2 8 4 Energy Gun 5 | 1 1 3 . Energy Cannon . | . . . . Ballistic Gun 9 | 1 1 3 4 Ballistic Cannon . | . . . . Launcher 2 | . . 2 . Special Weapon . | . . . . Impact Weapon . | . . . . Slashing Weapon . | . . . . Piercing Weapon . | . . . . Special Melee Weapon . | . . . . Unidentified Prototypes . | . . . . Parts Lost 28 | . 3 11 14 Power 2 | . . 1 1 Propulsion 13 | . . 4 9 Utility 4 | . 1 2 1 Weapon 9 | . 2 4 3 Highest Loss Streak 6 | . 1 3 6 Average Slot Usage (%) 98 | . 96 99 98 Engine 11 | . 14 11 11 Leg 31 | . 28 32 30 Device 8 | . . 9 10 Storage 16 | . 14 13 22 Protection 6 | . 10 9 . Energy Gun 7 | . 9 11 . Ballistic Gun 14 | . 18 7 21 Naked Turns . | . . . . Heaviest Build 48 | 12 48 47 47 Greatest Support 30 | 20 20 30 30 Greatest Overweight (x) 14 | 1 2 1 14 Average Overweight (x) 1 | . . 1 1 Largest Inventory Capacity 16 | 6 12 16 16 Average Capacity 12 | 4 9 11 16 Most Carried 16 | 6 10 12 16 Average Carried 10 | 2 6 9 13 Final Capacity 16 | 6 10 16 16 Final Carried 13 | 6 10 8 13 Class Distribution -------------------- 59% | Scavenger-Mutant 40% | Mutant Dominant Class ---------------- Mutant | -10/Materials Scavenger-Mutant | -9/Materials Scavenger-Mutant | -9/Storage Resources | -11 -10 -9 -9 ----------- Run | Scr Mat Mat Sto Matter Collected 1200 | 209 149 386 456 Remotely . | . . . . Salvage Created 2248 | . 394 984 870 Parts 147 | . 24 71 52 Haulers Intercepted . | . . . . Recyclers Shooed 2 | . 1 . 1 Parts Field Recycled . | . . . . Retrieved Matter . | . . . . Parts Self-Destructed . | . . . . Prevented . | . . . . Kills | -11 -10 -9 -9 ------- Run | Scr Mat Mat Sto Combat Hostiles Destroyed 61 | . 13 27 21 Guns 56 | . 13 22 21 AOE 5 | . . 5 . Classes Destroyed 6 | . 2 2 2 Worker 3 | . . 2 1 Watcher 1 | . . . 1 Swarmer 16 | . 6 6 4 Grunt 30 | . 7 15 8 Duelist 1 | . . . 1 Sentry 14 | . . 6 8 Best Kill Streak 7 | . 3 7 6 Combat Bots Only 7 | . 3 7 6 Max Kills in Single Turn 3 | . 1 3 1 Gunslinging . | . . . . Exploded 3 | . . 3 . Melee . | . . . . Uniques/NPCs Destroyed . | . . . . Combat | -11 -10 -9 -9 -------- Run | Scr Mat Mat Sto Damage Taken 3530 | . 527 1555 1448 Core 463 | . 60 209 194 Absorbed by Shields . | . . . . Core Remaining (%) 88 | 100 76 . . Volleys Fired 174 | . 31 72 71 Largest 2 | . 2 2 2 Hottest 130 | . 70 130 46 Shots Fired 321 | . 62 120 139 Gun 315 | . 62 114 139 Cannon . | . . . . Launcher 6 | . . 6 . Special . | . . . . Kinetic 232 | . 48 45 139 Thermal 44 | . 1 43 . Explosive 6 | . . 6 . Electromagnetic 39 | . 13 26 . Robot Hit Streak 24 | . 11 14 24 Robot Miss Streak 3 | . 3 2 3 Penetration Max . | . . . . Secondary Targets 8 | . 3 1 4 Max Gunslinging Chain 1 | . 1 1 1 Shots Hit Robots 216 | . 39 76 101 Core Hits 96 | . 20 40 36 Critical Hits 1 | . . . 1 Critical Kills . | . . . . Critical Parts Destroyed 1 | . . . 1 Melee Attacks . | . . . . Impact . | . . . . Slashing . | . . . . Piercing . | . . . . Sneak Attacks . | . . . . Combat Hostiles . | . . . . Follow-up Attacks . | . . . . Damage Inflicted 3630 | . 407 1709 1514 Guns 3025 | . 353 1158 1514 Cannons . | . . . . Explosions 605 | . 54 551 . Melee . | . . . . Ramming . | . . . . Kinetic 2163 | . 222 427 1514 Thermal 478 | . 54 424 . Explosive 551 | . . 551 . Electromagnetic 438 | . 131 307 . Impact . | . . . . Slashing . | . . . . Piercing . | . . . . Highest Corruption . | . . . . Average Corruption . | . . . . Corruption Purged . | . . . . Overload Shots . | . . . . Overflow Damage 5 | . 5 . . Projectiles . | . . . . Explosions 5 | . 5 . . Melee . | . . . . Knockbacks . | . . . . Impact . | . . . . Kinetic . | . . . . Secondary . | . . . . Self-Inflicted Damage 29 | . . 29 . Shots 2 | . . 2 . Rammed . | . . . . Targets Rammed . | . . . . Kicked . | . . . . Crushed . | . . . . Highest Temperature 352 | . 95 352 4 Average Temperature 53 | . 29 74 3 Received Heat Transfer 1191 | . 138 594 459 Effects 1 | . . 1 . Shutdowns 1 | . . 1 . Siege Activations . | . . . . Robots Corrupted . | . . . . Combat Hostiles . | . . . . Parts Fried . | . . . . Impact Corruptions . | . . . . Robots Melted . | . . . . Combat Hostiles . | . . . . Parts Melted 1 | . . 1 . Heat Transferred 1062 | . 100 962 . Parts Sabotaged . | . . . . Parts Stolen . | . . . . Parts Stripped . | . . . . Power Chain Reactions 1 | . 1 . . Missiles Intercepted . | . . . . Alert | -11 -10 -9 -9 ------- Run | Scr Mat Mat Sto Peak Influence 374 | . 295 299 374 Average Influence 195 | . 131 184 246 Maximum Alert Level 1 | . 1 1 1 Low Security (%) 47 | 100 69 54 26 Level 1 52 | . 30 45 73 Level 2 . | . . . . Level 3 . | . . . . Level 4 . | . . . . Level 5 . | . . . . High Security . | . . . . Max Security . | . . . . Squads Dispatched 9 | . 3 4 2 Investigation 2 | . 1 1 . Extermination . | . . . . Reinforcement 7 | . 2 3 2 Assault . | . . . . Garrison . | . . . . Intercept . | . . . . Construction Impeded . | . . . . Haulers Reinforced . | . . . . Stealth | -11 -10 -9 -9 --------- Run | Scr Mat Mat Sto Distress Signals 8 | . 1 3 4 Communications Jammed . | . . . . Distress Signals . | . . . . Times Spotted 96 | . 15 48 33 Peak Tracking Total 5 | . 3 5 5 Tactical Retreats 8 | . . 7 1 Traps | -11 -10 -9 -9 ------- Run | Scr Mat Mat Sto Traps Triggered 7 | . 1 2 4 Indirectly . | . . . . Trap Hack Attempts . | . . . . Triggered . | . . . . Disarmed . | . . . . Reprogrammed . | . . . . Reused . | . . . . Traps Extracted . | . . . . Installed . | . . . . Triggered . | . . . . Machines | -11 -10 -9 -9 ---------- Run | Scr Mat Mat Sto Machines Disabled 2 | . 1 1 . Max in Single Turn 1 | . 1 1 . Machines Sabotaged . | . . . . Garrisons Compromised . | . . . . Overloaded Fab Kills . | . . . . Fab Network Shutdowns . | . . . . Hacking | -11 -10 -9 -9 --------- Run | Scr Mat Mat Sto Machines Accessed 4 | . . 1 3 Terminals 4 | . . 1 3 Fabricators . | . . . . Repair Stations . | . . . . Recycling Units . | . . . . Scanalyzers . | . . . . Garrison Access . | . . . . Total Hacks 5 | . . 2 3 Successful 3 | . . . 3 Failed 2 | . . 2 . Catastrophic . | . . . . Database Lockouts . | . . . . Manual 3 | . . 2 1 Terminals 5 | . . 2 3 Fabricators . | . . . . Repair Stations . | . . . . Recycling Units . | . . . . Scanalyzers . | . . . . Garrison Access . | . . . . Terminal Hacks 3 | . . . 3 Open Door 2 | . . . 2 Level Access Points 1 | . . . 1 Fabricator Hacks . | . . . . Repair Station Hacks . | . . . . Recycling Unit Hacks . | . . . . Scanalyzer . | . . . . Garrison Access Hacks . | . . . . Unauthorized Hacks . | . . . . Terminals . | . . . . Fabricators . | . . . . Repair Stations . | . . . . Recycling Units . | . . . . Scanalyzers . | . . . . Garrison Access . | . . . . Data Cores Recovered . | . . . . Used . | . . . . Hacking Detections 3 | . . 1 2 Full Trace Events . | . . . . Feedback Events . | . . . . Feedback Blocked . | . . . . Robot Schematics Acquired . | . . . . Robots Built . | . . . . Matter . | . . . . Time . | . . . . Total Robot Build Rating . | . . . . Part Schematics Acquired . | . . . . Parts Built . | . . . . Matter . | . . . . Time . | . . . . Total Part Build Rating . | . . . . Parts Repaired . | . . . . Time . | . . . . Parts Recycled . | . . . . Recycled Matter . | . . . . Retrieved Matter . | . . . . Retrieved Components . | . . . . Parts Scanalyzed . | . . . . Part Schematics Acquired . | . . . . Parts Damaged . | . . . . Bothacking | -11 -10 -9 -9 ------------ Run | Scr Mat Mat Sto Used RIF Installer . | . . . . Robots Hacked . | . . . . Non-combat . | . . . . Combat . | . . . . Robot Hacks Applied . | . . . . Relay Couplers Released . | . . . . Robots Rewired . | . . . . Allies Hacked . | . . . . Hacks Repelled . | . . . . Allies | -11 -10 -9 -9 -------- Run | Scr Mat Mat Sto Total Allies . | . . . . Largest Group . | . . . . Highest-Rated Group . | . . . . Highest-Rated Ally . | . . . . Total Orders . | . . . . Ally Attacks . | . . . . Total Damage . | . . . . Kills . | . . . . Allies Corrupted . | . . . . Allies Melted . | . . . . Intel | -11 -10 -9 -9 ------- Run | Scr Mat Mat Sto Robot Analysis Total . | . . . . Derelict Logs Recovered . | . . . . Drone Launches . | . . . . Drone Recoveries . | . . . . Exploration | -11 -10 -9 -9 ------------- Run | Scr Mat Mat Sto Turns Passed 3567 | 73 584 1579 1331 Spaces Moved 1690 | 50 309 762 569 Core 7 | 6 . . 1 Treads . | . . . . Legs 1681 | 44 309 762 566 Wheels . | . . . . Hover 2 | . . . 2 Flight . | . . . . Fastest Speed 50 | 50 120 150 150 Average Speed 150 | 116 147 150 155 Slowest Speed 750 | 120 180 150 750 Overloaded Moves . | . . . . Propulsion Burnouts . | . . . . Robots Hopped . | . . . . Cave-ins Triggered . | . . . . Exploration Rate (%) 34 | 5 33 44 55 Regions Visited 3 Branch Regions 1 Pre-discovered Areas . | . . . . Known Exits Taken . | . . . . Unknown Exits Taken 3 | 1 1 1 . Scrap Searched . | . . . . Spaces Dug . | . . . . Terrain Destroyed 44 | . 4 40 . Melee . | . . . . Projectile . | . . . . AOE 44 | . 4 40 . Actions | -11 -10 -9 -9 --------- Run | Scr Mat Mat Sto Total 2401 | 61 385 1081 874 Wait 429 | . 22 198 209 Move 1687 | 49 308 761 569 Hop . | . . . . Pick Up 49 | 6 13 17 13 Fast Attach 19 | 6 4 5 4 Attach 27 | . 2 17 8 Detach 1 | . . 1 . Swap . | . . . . Drop 15 | . 5 10 . Fire 174 | . 31 72 71 Melee . | . . . . Ram . | . . . . Kick . | . . . . Crush . | . . . . Escape Stasis . | . . . . Rewire . | . . . . Trap . | . . . . Miscellaneous . | . . . . Route ------- -11/Scrapyard -10/Materials -9/Materials (discovered 2 exits: [*Min] / *Sto) -9/Storage (discovered 1 exit: Mat) History --------- Turn | Location | Event 5 | -11/Scrapyard | Discovered new exit (range 16) 74 | -11/Scrapyard | Entered Materials 305 | -10/Materials | Build established: Mutant 644 | -10/Materials | Discovered new exit (range 5) 658 | -10/Materials | Entered another Materials area 658 | -9/Materials | Evolved 2 slots: Propulsion x1, Utility x1 847 | -9/Materials | Discovered new exit (range 10) 898 | -9/Materials | Destroyed 7 combat bots 1749 | -9/Materials | Build established: Scavenger-Mutant 2177 | -9/Materials | Core integrity fell below 50% 2228 | -9/Materials | Discovered new exit (range 7) 2230 | -9/Materials | Lost 3 parts (1p2n) 2237 | -9/Materials | Entered Storage 2877 | -9/Storage | Lost 4 parts (1p3n) 3148 | -9/Storage | Identified exit to Materials 3507 | -9/Storage | Core integrity fell below 20% 3568 | -9/Storage | Destroyed by G-34 Mercenary with Small Laser Last Messages --------------- 03432_ Shotgun severed. 03434_ Acquired Shotgun. 03449_ U-05 Engineer lays Concrete. 03459_ W-16 Scout sends out distress signal. 03509_ Aluminum Leg destroyed. 03511_ Cooling System destroyed. 03514_ M-13 Machinist destroyed. 03536_ Aluminum Leg destroyed. 03538_ Y-45 Defender destroyed. 03546_ Hover Unit destroyed. 03547_ Y-45 Defender destroyed. 03550_ Acquired 53 matter. 03551_ Hover Unit destroyed. 03553_ Hvy. Assault Rifle destroyed. 03553_ R-06 Scavenger collects Lgt. Armor Plating. 03556_ U-05 Engineer builds a Door. 03556_ R-06 Scavenger collects Heat Sink. 03559_ R-06 Scavenger collects Lgt. Treads. 03564_ R-06 Scavenger collects Beam Rifle. 03567_ R-06 Scavenger collects Heat Sink. Map ----- +----------------------------------------------------+ | | | | | | | | | ?????????????????????????????????????????????????? | | ?????????????????????????????????????????????????? | | ?????????????????????????????????????????????????? | | ?????????????????????????????????????????????????? | | ?????????????????????????????????????????????????? | | ?????????????????????????????????????????????????? | | ?????????????????????????????????????????????????? | | ?????????????????????????????????????????????????? | | ???????###?###???????????????????????????????????? | | ???????# ????????????????#######??????????? | | ???????# #??????????????# #??????????? | | ???????# ##?????????????# #??????????? | | ???????# """"" #?????????????# """ ###????????? | | ???????# % """"" #??????????????# """ ""#????????? | | ???????# """"" #??????????????# """ Y"#????????? | | ???????? ???????????????# ""#????????# | | ?????????? ?????????????????# """ ###????????# | | " #####+#####??????????????# """ ""####?????? | | #??????????????# """ Y"##T#####?? | | #?????#"""##???# ""# !!!#?? | | ?######### ### #?????# T#???# ### !!!#?? | | ?????????# ??# #?????# @r#????# ! #?# #####?# | | ?????????# ??# #########g##########+####+####### | | ?????????# ??# * !k | | ?????????# ??# !%= ^^ | | ????????? ??########################## #####+## | | ????????? ????????????????????????????# ##| %% # | | ????????? ??????????????????????##????# ## # | | ????????# ???????????????????#### ##### ## # | | ????????###???????????????????# # ## """ # | | ??????????????????????????????#""" # ## """ | | ??????????????????????????????#""" # ## """ # | | ??????????????????????????????#""" ! # ## # | | ??????????????????????????????# + ## """ # | | ??????????????????????????????#""" # + """ # | | ??????????????????????????????#""" ## ## """ # | | ??????????????????????????????#""" ## ## # | | ??????????????????????????????# ## ## # | | ????????????????????????????############# ######## | | ????????????????????????????# #?# #??????# | | ????????????????????????????# "T" ### #??????# | | ????????????????????????????# "## #??????# | | ????????????????????????????# """"" T## ####???# | | ????????????????????????????# """"" "## #???# | | ????????????????????????????# " " #?# ##### | | ????????????????????????????# #?# ##%## | +----------------------------------------------------+ Best States ------------- Heat Dissipation 50 Energy Generation 12 Energy Capacity 265 Matter Stores 300 Matter Capacity 300 Sight Range 16 Terrain Scan Density 10 Armor Coverage 450 Core Shielding 20 Evasion (%) 40 Item Schematics ----------------- None Robot Schematics ------------------ None Fabricated ------------ Nothing Alien Tech Used ----------------- None Achievements -------------- None Challenges ------------ None Game ------ Seed AssemblyBurstAccelerator Manual? 0 Play Time 01:13:22 Cumulative 13.2 hours Start 2020.04.21 @ 19:39:03 End 2020.05.01 @ 16:42:19 Sessions 5 Manual Loads 0 Difficulty Rogue Special Mode None Game No. 9 Rogue 9 Adventurer 0 Explorer 0 Win Type - Total 0 Types 0/0/0/0/0/0/0 Lore% 7 Gallery% 12 Achievement% 8 Wizard Run 0 Options --------- ASCII 1 Keyboard 1 Movement Numpad Keybinds 0 Fullscreen 0 Font 14/Terminus Map View 76x50 Tactical HUD 1 Map Filters NONE Filters NONE Steam 1 RUN: 39c2f3d5-9947-4e3c-9aeb-15595413d420